bitfinex/quotes_ETHUSD_20251009
["timestamp","ask_amount","ask_price","bid_price","bid_amount"]
[1760017767321,2.28055507,4384.9,4384.3,0.65640865]
[1760017767526,0.1136,4384.9,4384.3,0.65640865]
[1760017767884,2.39419123,4384.9,4384.3,0.65640865]
[1760017768230,2.28080209,4384.5,4384.4,6.597]
[1760017768424,2.28080209,4384.5,4384.4,8.969]
[1760017768713,0.59971427,4385.6,4384.5,2.91434139]
[1760017768911,0.59971427,4385.6,4384.4,9.4391]
[1760017768912,2.28029417,4385.4,4384.8,0.7472]
[1760017769115,0.80927133,4386.1,4384.8,0.7472]
[1760017769116,0.48343553,4386.0,4385.5,2.9138417]
[1760017769449,0.48343553,4386.0,4385.0,0.6336]
[1760017769450,2.2795702,4386.8,4385.6,19.87688606]
[1760017769622,0.59971427,4387.1,4385.6,19.85408417]
[1760017769803,2.2796699,4386.6,4385.9,0.6336]
[1760017770002,0.59971427,4387.1,4385.9,0.6336]
[1760017770003,0.48548867,4386.7,4386.2,0.6336]
[1760017770203,0.002,4386.7,4386.4,0.6336]
[1760017770434,0.002,4386.7,4386.6,0.6336]
[1760017770743,0.002,4386.7,4386.6,2.93606659]
[1760017770942,0.002,4386.7,4386.6,1.1037]
[1760017771105,0.002,4386.7,4386.6,2.11087]
[1760017771307,0.002,4386.7,4386.6,4.3905399]
[1760017771744,0.002,4386.7,4386.6,4.41333659]
[1760017771952,0.002,4386.7,4386.1,0.2362]
[1760017772104,0.002,4386.7,4386.6,0.6336]
[1760017772419,0.002,4386.7,4386.6,9.6006]
[1760017772616,0.002,4386.7,4386.6,0.6336]
[1760017772935,0.002,4386.7,4386.6,2.0586]
[1760017773139,0.002,4386.7,4385.8,0.2362]
[1760017773438,0.002,4386.7,4385.9,0.6336]
[1760017773638,2.28163917,4386.7,4386.1,0.6336]
[1760017773841,0.002,4386.7,4386.1,0.6336]
[1760017774137,2.27967353,4386.6,4386.1,0.6336]
[1760017774307,2.2796699,4386.6,4386.1,0.6336]
[1760017774507,0.002,4386.7,4386.2,0.02279877]
[1760017774707,0.002,4386.7,4386.3,0.6336]
[1760017774918,0.002,4386.7,4386.5,0.6336]
[1760017775651,0.002,4386.7,4386.6,11.90106659]
[1760017775848,0.002,4386.7,4386.6,12.3483699]
[1760017776407,0.002,4386.7,4386.6,10.0687]
[1760017776637,0.002,4386.7,4386.6,11.8782699]
[1760017776856,0.002,4386.7,4386.6,0.6336]
[1760017777059,0.002,4386.7,4386.6,9.5986]
[1760017777767,0.002,4386.7,4386.6,0.6336]
[1760017777966,2.28165909,4386.7,4386.6,5.599]
[1760017778171,0.002,4386.7,4386.6,7.97]
[1760017778770,0.002,4386.7,4386.6,8.6036]
[1760017779190,0.002,4386.7,4386.6,0.6336]
[1760017779353,0.002,4386.7,4386.6,9.5966]
[1760017779901,0.002,4386.7,4386.6,13.54537198]
[1760017780037,0.002,4386.7,4386.6,1.83260208]
[1760017780373,0.002,4386.7,4386.6,0.6336]
[1760017780576,0.002,4386.7,4386.6,10.2792699]
[1760017780732,0.002,4386.7,4386.6,0.6336]
[1760017780934,0.002,4386.7,4386.6,9.61939669]
[1760017781185,0.002,4386.7,4386.6,9.5966]
[1760017781535,0.002,4386.7,4386.6,7.2246]
[1760017781885,0.002,4386.7,4386.6,0.6336]
[1760017782177,2.28161831,4386.7,4386.6,3.51]
[1760017782988,0.002,4386.7,4386.6,4.6137]
[1760017783294,0.002,4386.7,4386.6,7.3783599]
[1760017783579,0.002,4386.7,4386.6,22.3163599]
[1760017783736,0.002,4386.7,4386.6,3.8683599]
[1760017783935,0.002,4386.7,4386.6,22.3163599]
[1760017785496,0.002,4386.7,4386.6,24.2363599]
[1760017787863,0.48422272,4388.7,4387.5,2.91280227]
[1760017788069,2.27832909,4389.2,4387.5,14.0840825]
[1760017788265,0.59971427,4389.6,4387.5,14.5577825]
[1760017788464,1.92,4389.5,4387.5,14.5577825]
[1760017788687,2.27852992,4388.8,4387.5,24.0417825]
[1760017789000,0.48422272,4389.4,4387.5,9.90758023]
[1760017789183,2.27863069,4388.7,4387.5,5.5977825]
[1760017789384,2.27853508,4388.8,4387.5,24.0417825]
[1760017789585,2.27837177,4389.1,4387.5,24.0417825]
[1760017789773,0.48408165,4389.3,4387.5,5.5977825]
[1760017789961,2.27859348,4388.7,4387.5,1.39858023]
[1760017790161,2.27859348,4388.7,4385.4,0.2362]
[1760017790162,0.0992,4388.8,4387.4,2.27921534]
[1760017790392,0.0992,4388.8,4387.1,2.27936645]
[1760017790586,2.27850111,4388.9,4386.8,2.27954534]
[1760017790587,2.27896678,4388.0,4386.8,2.27954534]
[1760017790804,0.0992,4388.4,4385.4,0.2362]
[1760017790805,2.27912955,4387.7,4385.4,0.2362]
[1760017791069,0.59971427,4388.6,4386.0,0.4737]
[1760017791070,0.183,4387.5,4386.0,0.4737]
[1760017791369,2.27934989,4387.3,4386.2,2.27986582]
[1760017791600,2.27971916,4386.6,4386.3,5.325]
[1760017791806,0.183,4387.2,4385.4,0.2362]
[1760017792021,0.183,4387.1,4385.5,11.2382398]
[1760017792223,0.31867773,4387.0,4385.6,2.28014972]
[1760017792405,2.27980099,4386.4,4385.6,2.28014972]
[1760017792609,2.27980099,4386.4,4385.4,9.483]
[1760017792610,2.27986783,4386.3,4385.3,2.3937]
[1760017792816,2.27971084,4386.6,4385.7,2.28009079]
[1760017793019,0.1136,4386.4,4385.8,4.341]
[1760017793212,0.1136,4386.4,4385.7,0.1136]
[1760017793387,0.1136,4386.4,4385.9,6.588]
[1760017793588,2.27982582,4386.3,4385.7,0.1136]
[1760017793897,2.28014227,4385.7,4385.3,2.371]
[1760017794219,0.1136,4385.8,4385.3,2.371]
[1760017794220,0.23934258,4386.2,4385.4,1.00250293]
[1760017794415,0.1136,4386.0,4385.4,1.00250293]
[1760017794637,0.1136,4386.0,4385.5,0.6336]
[1760017795141,2.28004082,4385.9,4385.5,0.6336]
[1760017795288,2.28004082,4385.9,4384.0,0.2362]
[1760017795289,0.0982,4385.8,4385.6,3.7]
[1760017795484,2.28013772,4385.7,4385.6,3.7]
[1760017795684,2.28013772,4385.7,4384.8,0.1136]
[1760017795685,0.1136,4385.6,4384.8,0.1136]
[1760017795915,2.2803457,4385.3,4384.1,0.4737]
[1760017796221,0.0982,4385.2,4384.0,0.02281021]
[1760017796526,0.0982,4385.2,4383.3,9.484]
[1760017796527,2.37834222,4385.7,4384.5,2.28074841]
[1760017796725,0.48490949,4385.7,4385.2,0.6336]
[1760017796888,0.48514245,4385.9,4385.4,0.6336]
[1760017797231,2.2801291,4385.8,4385.4,0.6336]
[1760017797390,2.2801291,4385.8,4385.0,2.28149912]
[1760017797391,2.28022961,4385.6,4385.5,6.588]
[1760017797595,2.28022961,4385.6,4385.5,8.959]
[1760017797795,0.0982,4385.8,4385.0,0.001]
[1760017798022,2.2802829,4385.5,4385.1,8.959]
[1760017798325,2.28025112,4385.5,4385.1,8.959]
[1760017798496,2.28031189,4385.4,4385.0,0.001]
[1760017798691,2.2802417,4385.5,4385.1,8.959]
[1760017799002,2.28013772,4385.7,4385.2,8.959]
[1760017799200,2.76556731,4386.0,4385.2,8.959]
[1760017799402,0.33652816,4386.0,4385.2,8.959]
[1760017799601,0.084,4385.9,4385.2,8.959]
[1760017800003,2.28028358,4385.5,4385.2,8.959]
[1760017800203,2.28030644,4385.4,4385.2,8.959]
[1760017800427,4.56017146,4385.8,4385.0,0.001]
[1760017800593,0.0982,4385.3,4385.0,0.001]
[1760017800795,10.95403006,4386.5,4385.0,0.001]
[1760017800796,0.60676205,4386.0,4385.2,2.2803977]
[1760017801029,0.48539787,4386.3,4385.5,0.6336]
[1760017801233,0.48539787,4386.3,4385.4,2.28025083]
[1760017801234,2.27987704,4386.3,4385.6,6.11580189]
[1760017801406,0.48539787,4386.4,4385.7,0.6336]
[1760017801612,0.0982,4386.8,4385.8,0.02280085]
[1760017801824,0.0982,4386.8,4385.9,2.371]
[1760017802138,0.0982,4386.8,4386.0,8.959]
[1760017802335,2.27961793,4386.7,4386.1,2.371]
[1760017802645,0.48539787,4386.7,4386.1,4.67372558]
[1760017802800,0.48739787,4387.2,4386.2,0.865]
[1760017802999,0.48739787,4387.2,4386.4,0.6336]
[1760017803000,0.002,4387.2,4386.4,0.6336]
[1760017803209,0.002,4387.2,4386.6,0.6336]
[1760017803409,0.002,4387.2,4386.8,0.6336]
[1760017803612,0.002,4387.2,4387.1,2.91301008]
[1760017803794,0.002,4387.2,4387.1,11.42101008]
[1760017804202,0.002,4387.2,4387.1,23.71441008]
[1760017804406,0.002,4387.2,4387.1,25.96618053]
[1760017805999,1e-08,4387.6,4387.5,2.91280227]
[1760017806195,1e-08,4387.6,4387.5,9.49980227]
[1760017806534,1e-08,4387.6,4387.5,21.90580227]
[1760017806698,1e-08,4387.6,4387.5,10.05080227]
[1760017807059,1e-08,4387.6,4387.5,24.15757272]
[1760017807843,1e-08,4387.6,4387.5,4.60917045]
[1760017808132,1e-08,4387.6,4387.5,12.81360227]
[1760017808436,1e-08,4387.6,4387.5,2.3574]
[1760017808637,1e-08,4387.6,4387.5,4.63660227]
[1760017809161,1e-08,4387.6,4387.5,14.22620227]
[1760017809361,1e-08,4387.6,4387.5,1.92]
[1760017809663,1e-08,4387.6,4387.5,14.41820227]
[1760017810159,1e-08,4387.6,4387.5,5.46220227]
[1760017810331,1e-08,4387.6,4387.5,2.60852]
[1760017810528,1e-08,4387.6,4387.5,9.19352]
[1760017810731,1e-08,4387.6,4387.5,0.23852]
[1760017811060,2.27915034,4387.6,4387.5,0.23852]
[1760017811263,2.27915034,4387.6,4387.5,0.48152]
[1760017811430,0.46637038,4387.6,4387.5,0.48152]
[1760017811637,2.27915034,4387.6,4387.5,0.48152]
[1760017811941,1e-08,4387.6,4387.5,0.48152]
[1760017812341,1e-08,4387.6,4387.5,0.23852]
[1760017812548,2.27915034,4387.6,4387.5,0.23852]
[1760017812730,2.37815034,4387.6,4387.5,0.23852]
[1760017812930,4.77466108,4387.6,4387.5,0.23852]
[1760017813352,1e-08,4387.6,4387.5,0.23852]
[1760017813554,2.27915034,4387.6,4387.5,0.23852]
[1760017814031,2.27915034,4387.6,4387.5,2.69552]
[1760017814231,1e-08,4387.6,4387.5,2.69552]
[1760017814460,2.27915034,4387.6,4387.5,0.23852]
[1760017814735,2.85476133,4387.6,4387.5,0.23852]
[1760017814957,4.77476133,4387.6,4387.5,0.23852]
[1760017815269,4.77396133,4387.6,4387.5,1e-08]
[1760017816769,5.25874248,4387.6,4387.5,1e-08]
[1760017817135,5.86550453,4387.6,4387.5,1e-08]
[1760017817334,5.25874248,4387.6,4387.5,1e-08]
[1760017817563,11.84274248,4387.6,4387.5,1e-08]
[1760017818362,5.25874248,4387.6,4387.5,1e-08]
[1760017818668,0.002,4387.7,4387.5,1e-08]
[1760017818849,2.27915033,4387.6,4387.5,1e-08]
[1760017819369,2.27915033,4387.6,4387.5,6.58400001]
[1760017819666,0.002,4387.7,4387.5,6.58400001]
[1760017820260,0.002,4387.7,4387.6,1.071]
[1760017820440,0.002,4387.7,4387.6,3.37294183]
[1760017820633,0.002,4387.7,4387.6,3.48654183]
[1760017820864,0.002,4387.7,4387.6,2.45144568]
[1760017821135,0.002,4387.7,4387.6,2.42865418]
[1760017821341,0.002,4387.7,4387.6,6.584]
[1760017821541,0.002,4387.7,4387.6,8.954]
[1760017821765,0.002,4387.7,4387.5,1e-08]
[1760017821971,2.27915033,4387.6,4387.5,1e-08]
[1760017822202,2.37825033,4387.6,4387.5,1e-08]
[1760017822406,2.85476083,4387.6,4387.5,1e-08]
[1760017823204,2.35476083,4387.6,4387.5,1e-08]
[1760017825079,4.76000841,4387.6,4387.5,1e-08]
[1760017825568,7.16700841,4387.6,4387.5,1e-08]
[1760017825801,8.60987974,4387.6,4387.5,1e-08]
[1760017826073,7.80060841,4387.6,4387.5,1e-08]
[1760017826280,9.01229522,4387.6,4387.5,1e-08]
[1760017826507,7.80060841,4387.6,4387.5,1e-08]
[1760017826703,2.28018971,4385.6,4385.5,0.001]
[1760017827068,0.099,4385.6,4385.5,0.001]
[1760017827268,2.37918971,4385.6,4385.5,0.001]
[1760017827525,1.92,4386.0,4385.5,0.001]
[1760017827671,0.099,4387.1,4385.6,2.371]
[1760017828172,0.099,4387.0,4385.6,2.371]
[1760017828380,2.27961793,4386.7,4385.5,0.001]
[1760017828786,0.099,4386.6,4385.6,2.562]
[1760017828988,1.92,4387.0,4385.5,0.001]
[1760017829280,2.28018971,4385.6,4385.5,0.001]
[1760017829695,2.83522024,4385.6,4385.5,0.001]
[1760017829881,4.75522024,4385.6,4385.5,0.001]
[1760017831618,5.23995564,4385.6,4385.5,0.001]
[1760017833193,4.75522024,4385.6,4385.5,0.001]
[1760017833590,5.23929709,4385.6,4385.5,0.001]
[1760017834239,4.75522024,4385.6,4385.5,0.001]
[1760017835001,5.23910783,4385.6,4385.5,0.001]
[1760017836028,5.23830783,4385.6,4385.5,0.001]
[1760017838197,2.37838971,4385.6,4385.5,0.001]
[1760017839143,10.88338971,4385.6,4385.5,0.001]
[1760017839292,11.36748349,4385.6,4385.5,0.001]
[1760017840514,11.97421709,4385.6,4385.5,0.001]
[1760017840710,21.35894787,4385.6,4385.5,0.001]
[1760017840934,21.96423642,4385.6,4385.5,0.001]
[1760017841253,21.35894787,4385.6,4385.5,0.001]
[1760017841397,4.20065774,4384.7,4384.6,1e-08]
[1760017841729,13.64175152,4384.7,4384.6,1e-08]
[1760017842227,13.74075152,4384.7,4384.6,1e-08]
[1760017844652,16.78135152,4384.7,4384.6,1e-08]
[1760017845330,26.7728159,4384.7,4384.6,1e-08]
[1760017845501,23.7322159,4384.7,4384.6,1e-08]
[1760017845700,14.34537385,4384.7,4384.6,1e-08]
[1760017846018,13.74075152,4384.7,4384.6,1e-08]
[1760017846602,13.25665774,4384.7,4384.6,1e-08]
[1760017846937,10.88465774,4384.7,4384.6,1e-08]
[1760017847516,11.36825579,4384.7,4384.6,1e-08]
[1760017849039,2.91451784,4384.2,4384.1,0.001]
[1760017849216,23.78298222,4384.2,4384.1,0.001]
[1760017849412,27.57947511,4384.2,4384.1,0.001]
[1760017849615,26.72258027,4384.2,4384.1,0.001]
[1760017850349,2.91472596,4383.8,4383.7,0.001]
[1760017850552,11.41972596,4383.8,4383.7,0.001]
[1760017850726,2.28185469,4382.4,4381.9,0.001]
[1760017850928,10.78785469,4382.4,4381.9,0.001]
[1760017851139,10.88755469,4382.4,4381.9,0.001]
[1760017851861,11.37116954,4382.4,4381.9,0.001]
[1760017852362,4.30155469,4382.4,4381.9,0.001]
[1760017852567,8.6057,4382.4,4381.9,0.001]
[1760017852863,10.88755469,4382.4,4381.9,0.001]
[1760017853210,12.0226895,4382.4,4381.9,0.001]
[1760017853419,10.88755469,4382.4,4381.9,0.001]
[1760017854033,8.96755469,4382.4,4381.9,0.001]
[1760017854347,9.45137489,4382.4,4381.9,0.001]
[1760017855621,2.86537489,4382.4,4381.9,0.001]
[1760017855839,2.38155469,4382.4,4381.9,0.001]
[1760017856581,2.86561806,4382.4,4381.9,0.001]
[1760017856873,4.78561806,4382.4,4381.9,0.001]
[1760017858159,4.68591806,4382.4,4381.9,0.001]
[1760017858335,4.20185469,4382.4,4381.9,0.001]
[1760017858850,4.20185469,4382.4,4382.3,6e-07]
[1760017859059,4.30155469,4382.4,4382.3,6e-07]
[1760017859571,2.28164032,4382.9,4382.3,6e-07]
[1760017859572,0.70398795,4383.1,4382.3,6e-07]
[1760017859775,2.28180533,4382.5,4382.3,6e-07]
[1760017859952,1.92,4382.7,4382.3,6e-07]
[1760017860147,2.38155469,4382.4,4382.3,6e-07]
[1760017860648,0.44340929,4383.0,4382.3,6e-07]
[1760017860649,1.92,4382.9,4382.3,6e-07]
[1760017860963,0.44663577,4383.5,4382.6,2.28170311]
[1760017860964,2.2813346,4383.4,4382.6,2.28170311]
[1760017861139,0.1678,4383.9,4382.7,0.02281698]
[1760017861140,0.1136,4383.0,4382.7,0.02281698]
[1760017861335,0.1136,4383.0,4382.7,0.2688817]
[1760017861575,2.39515139,4383.0,4382.7,2.827]
[1760017861882,0.1136,4383.0,4382.7,2.827]
[1760017862375,0.1136,4383.0,4382.8,0.02281646]
[1760017862580,0.1136,4383.0,4382.5,2.28179525]
[1760017862734,2.28185469,4382.4,4382.3,6e-07]
[1760017863181,0.0981,4382.9,4382.3,6e-07]
[1760017863466,0.1136,4382.7,4382.3,0.4308006]
[1760017863673,0.1136,4382.7,4382.5,2.28178288]
[1760017863835,0.1136,4382.7,4382.6,0.2735402]
[1760017864241,0.1136,4382.7,4382.3,6e-07]
[1760017864657,2.28185469,4382.4,4382.3,6e-07]
[1760017865055,0.1136,4382.5,4382.3,2.28190727]
[1760017865363,0.1136,4382.5,4382.3,6e-07]
[1760017865542,0.1136,4382.5,4382.3,0.80008262]
[1760017865764,2.38075469,4382.4,4382.3,6e-07]
[1760017867204,4.30075469,4382.4,4382.3,6e-07]
[1760017867482,4.78591525,4382.4,4382.3,6e-07]
[1760017867844,11.9762032,4382.4,4382.3,6e-07]
[1760017868074,11.37191525,4382.4,4382.3,6e-07]
[1760017868973,4.78591525,4382.4,4382.3,6e-07]
[1760017869181,1.39329612,4382.4,4382.3,6e-07]
[1760017869380,1.21168681,4382.7,4382.3,6e-07]
[1760017869381,0.60700452,4382.7,4382.3,6e-07]
[1760017869697,0.60700452,4382.6,4382.3,6e-07]
[1760017869845,1.09216508,4382.8,4382.3,6e-07]
[1760017870048,2.28175069,4382.6,4382.3,6e-07]
[1760017870345,0.48516056,4382.8,4382.3,6e-07]
[1760017870550,0.1136,4382.4,4382.3,6e-07]
[1760017871093,2.39545469,4382.4,4382.3,6e-07]
[1760017872088,0.1136,4382.4,4382.3,6e-07]
[1760017872291,2.39545469,4382.4,4382.3,6e-07]
[1760017872989,2.49435469,4382.4,4382.3,6e-07]
[1760017873347,0.1136,4382.4,4382.3,6e-07]
[1760017873581,0.1136,4382.4,4382.3,0.4308006]
[1760017873753,0.1136,4382.9,4382.3,2.73551934]
[1760017873954,0.1136,4382.9,4382.4,0.52335157]
[1760017874149,0.1136,4382.9,4382.5,6.60881802]
[1760017874385,2.39520123,4382.9,4382.5,8.959]
[1760017874607,0.1136,4382.9,4382.5,8.959]
[1760017874829,2.28134105,4383.4,4382.8,0.216]
[1760017875108,0.002,4383.7,4382.9,9.27904]
[1760017875493,0.002,4383.7,4383.1,0.6336]
[1760017875867,0.002,4383.7,4383.2,0.02281438]
[1760017876076,0.002,4383.7,4383.5,0.6336]
[1760017876270,0.002,4383.7,4383.6,0.0228123]
[1760017876503,0.002,4383.7,4383.6,2.30404233]
[1760017876706,0.002,4383.7,4383.6,9.88481937]
[1760017877004,0.002,4383.7,4383.6,7.58077704]
[1760017877216,0.002,4383.7,4383.6,12.23500707]
[1760017877521,0.002,4383.7,4383.6,9.52297704]
[1760017877672,0.002,4383.7,4383.6,7.14997704]
[1760017878001,0.002,4383.7,4383.6,3.27700707]
[1760017878178,0.002,4383.7,4383.6,12.23500707]
[1760017878381,0.002,4383.7,4383.6,9.95377704]
[1760017878596,0.002,4383.7,4383.6,14.15500707]
[1760017878895,0.002,4383.7,4383.6,14.78860707]
[1760017881016,0.002,4383.7,4383.6,3.54937704]
[1760017881217,0.002,4383.7,4383.6,14.78760707]
[1760017882046,0.002,4384.6,4384.5,2.91436177]
[1760017882209,0.002,4384.6,4384.5,12.41368907]
[1760017882548,0.002,4384.6,4384.5,12.82168146]
[1760017882746,0.002,4384.6,4384.5,1.15311969]
[1760017883035,0.002,4384.6,4384.5,6.40336938]
[1760017883335,0.002,4384.6,4384.5,6.38056177]
[1760017883540,0.002,4384.6,4384.5,9.29456177]
[1760017883743,0.002,4384.6,4384.5,11.66656177]
[1760017883904,0.002,4384.6,4384.4,0.216]
[1760017884241,0.0012,4384.6,4384.5,6.721]
[1760017884533,0.0012,4384.6,4384.5,8.955]
[1760017884736,0.0012,4384.6,4384.5,6.6966]
[1760017885317,0.0012,4384.6,4384.5,9.0686]
[1760017885513,0.0012,4384.6,4384.5,11.34936177]
[1760017885710,0.0012,4384.6,4384.5,15.46869795]
[1760017887249,0.0012,4384.6,4384.5,24.95769795]
[1760017887429,0.0012,4384.6,4384.5,3.02796177]
[1760017887636,0.0012,4384.6,4384.5,13.90196177]
[1760017887950,0.002,4385.1,4385.0,4.20050171]
[1760017888120,0.002,4385.1,4385.0,10.80530672]
[1760017888326,0.002,4385.1,4385.0,11.22590171]
[1760017888519,0.002,4385.1,4385.0,12.63990922]
[1760017889353,0.002,4385.1,4385.0,15.01090922]
[1760017890430,0.002,4385.1,4385.0,12.73040751]
[1760017890751,0.002,4385.1,4385.0,10.71790922]
[1760017890956,0.002,4385.1,4385.0,11.35150922]
[1760017891155,0.002,4385.1,4385.0,13.72350922]
[1760017892240,0.002,4385.1,4385.0,1.85740751]
[1760017892434,0.002,4385.1,4385.0,6.71290171]
[1760017893023,0.002,4385.1,4385.0,7.34650171]
[1760017893742,0.002,4385.1,4385.0,9.26650171]
[1760017895951,0.002,4385.1,4385.0,5.27750171]
[1760017896154,0.002,4385.1,4385.0,24.47031195]
[1760017896553,0.002,4385.1,4385.0,3.75281024]
[1760017896760,0.002,4385.1,4385.0,4.20050171]
[1760017896979,0.002,4385.1,4384.1,0.216]
[1760017897282,0.002,4385.1,4384.8,2.28059343]
[1760017897458,0.002,4385.1,4384.9,6.60180553]
[1760017897650,0.002,4385.1,4384.9,6.579]
[1760017897850,0.002,4385.1,4385.0,6.579]
[1760017898057,0.002,4385.1,4385.0,8.95]
[1760017898235,0.002,4385.1,4385.0,10.29976]
[1760017898426,0.002,4385.1,4384.8,0.1136]
[1760017898761,0.002,4385.1,4384.9,3.025]
[1760017899230,0.002,4385.1,4385.0,0.02280501]
[1760017899846,0.002,4385.1,4384.9,3.04780553]
[1760017900047,0.002,4385.1,4384.9,3.025]
[1760017900439,0.002,4385.1,4385.0,8.949]
[1760017900862,0.002,4385.1,4384.2,2.28087969]
[1760017901071,0.002,4385.1,4384.5,2.28072035]
[1760017901278,0.002,4385.1,4384.6,0.02280709]
[1760017901472,0.002,4385.1,4384.7,6.578]
[1760017901644,0.002,4385.1,4383.2,2.28142258]
[1760017901645,2.2808128,4384.5,4383.2,2.28142258]
[1760017901970,0.002,4385.1,4383.3,9.19995612]
[1760017902172,0.002,4385.1,4383.7,2.914778]
[1760017902483,0.002,4385.1,4384.3,2.28084644]
[1760017902656,2.28245649,4385.1,4384.4,7.576]
[1760017902854,0.002,4385.1,4384.4,7.576]
[1760017903059,2.28247108,4385.1,4384.5,0.02280761]
[1760017903264,2.28050362,4385.0,4384.4,7.576]
[1760017903579,0.002,4385.1,4384.2,0.6336]
[1760017903743,2.28061278,4384.8,4384.2,0.6336]
[1760017903945,0.002,4385.1,4383.9,2.2810653]
[1760017904140,0.002,4385.1,4384.0,5.014]
[1760017904343,0.002,4385.1,4384.1,2.28093004]
[1760017904344,2.28060903,4384.8,4384.1,2.28093004]
[1760017904543,2.28060903,4384.8,4383.6,11.408]
[1760017904544,2.28094339,4384.2,4383.6,0.001]
[1760017904808,0.0997,4384.7,4383.6,0.001]
[1760017904809,2.281178,4383.7,4383.6,0.001]
[1760017904952,2.280378,4383.7,4383.6,0.001]
[1760017905354,2.380078,4383.7,4383.6,0.001]
[1760017905554,5.39393488,4383.7,4383.6,0.001]
[1760017905759,6.27499399,4383.7,4383.6,0.001]
[1760017906090,6.27700301,4383.7,4383.6,0.001]
[1760017906267,5.46575843,4383.7,4383.6,0.001]
[1760017906471,6.07364512,4383.7,4383.6,0.001]
[1760017906903,6.27700301,4383.7,4383.6,0.001]
[1760017907123,5.46575843,4383.7,4383.6,0.001]
[1760017907266,6.27537206,4383.7,4383.6,0.001]
[1760017907465,6.27536804,4383.7,4383.6,0.001]
[1760017907792,5.46575843,4383.7,4383.6,0.001]
[1760017908105,7.31104524,4383.7,4383.6,0.001]
[1760017908316,2.28138617,4383.3,4382.8,0.001]
[1760017908491,2.28206298,4382.0,4381.9,1e-08]
[1760017908912,4.78861534,4382.0,4381.9,1e-08]
[1760017909406,4.30176298,4382.0,4381.9,1e-08]
[1760017909608,4.78617491,4382.0,4381.9,1e-08]
[1760017910387,4.30176298,4382.0,4381.9,1e-08]
[1760017910709,4.98059105,4382.0,4381.9,1e-08]
[1760017913388,4.98059105,4382.0,4379.2,2.51379671]
[1760017913724,12.16704282,4381.5,4381.4,1e-08]
[1760017914027,0.1457,4381.5,4381.4,1e-08]
[1760017914180,2.4280234,4381.5,4381.4,1e-08]
[1760017914385,0.1453,4381.9,4381.4,1e-08]
[1760017914582,1.92,4381.8,4381.4,1e-08]
[1760017914883,0.1453,4381.9,4381.4,1e-08]
[1760017915221,0.1006,4381.7,4381.4,1e-08]
[1760017915420,2.28231639,4381.6,4381.4,1e-08]
[1760017915604,2.2823234,4381.5,4381.4,1e-08]
[1760017916012,2.3829234,4381.5,4381.4,1e-08]
[1760017916407,0.1006,4381.5,4381.4,1e-08]
[1760017916614,2.3829234,4381.5,4381.4,1e-08]
[1760017917125,2.84943781,4381.5,4381.4,1e-08]
[1760017918612,4.76943781,4381.5,4381.4,1e-08]
[1760017919120,1.92,4381.5,4381.4,1e-08]
[1760017919625,1.92,4381.5,4375.3,0.332]
[1760017919626,14.706897,4378.9,4375.3,0.332]
[1760017919811,9.73901942,4377.5,4375.4,0.2706]
[1760017920010,0.65276531,4377.4,4375.3,2.373]
[1760017920346,0.65276531,4377.4,4375.2,0.074]
[1760017920347,0.65276531,4377.4,4375.2,0.0024]
[1760017920348,1.92,4376.6,4375.2,0.0024]
[1760017920505,9.4088,4377.3,4375.2,0.0024]
[1760017920506,2.28555756,4375.3,4375.2,0.0024]
[1760017920709,2.28555756,4375.3,4374.7,0.001]
[1760017920710,4.2056098,4375.2,4374.7,0.001]
[1760017920916,6.11632609,4375.2,4374.7,0.001]
[1760017921129,6.11632609,4375.2,4372.9,0.1887]
[1760017921130,2.3738,4375.2,4372.9,0.1887]
[1760017921445,0.02616531,4375.1,4373.0,2.457]
[1760017921631,0.02616531,4375.1,4373.1,0.4422]
[1760017921944,0.02616531,4375.1,4372.0,0.2327]
[1760017921945,9.73901942,4374.8,4373.2,0.02286655]
[1760017922246,9.73901942,4374.8,4372.5,5.363]
[1760017922247,2.40176531,4374.7,4372.8,0.4422]
[1760017922420,0.02616531,4374.7,4374.6,0.001]
[1760017922624,0.02616531,4375.1,4374.6,0.001]
[1760017922923,2.40176531,4376.0,4374.6,0.001]
[1760017923118,0.48176531,4376.0,4374.7,0.4422]
[1760017923319,0.48176531,4376.0,4374.8,3.09485818]
[1760017923520,0.45102904,4377.6,4375.0,1.92]
[1760017923720,0.02616531,4377.3,4375.1,0.4422]
[1760017924049,2.091,4377.4,4375.1,0.4422]
[1760017924050,0.02616531,4377.4,4375.2,2.57645609]
[1760017924346,0.4505,4378.7,4376.1,0.6336]
[1760017924546,0.02616531,4378.5,4377.3,0.2327]
[1760017924707,2.61919459,4379.2,4377.4,3.72884461]
[1760017924708,0.02616531,4379.1,4377.4,3.72884461]
[1760017924910,2.28352261,4379.2,4377.5,0.4422]
[1760017924911,0.02616531,4379.2,4377.5,0.4422]
[1760017925108,0.02616531,4379.2,4377.6,0.02284356]
[1760017925350,0.4475,4379.9,4378.5,2.28388717]
[1760017925510,0.02616531,4379.9,4377.7,0.4422]
[1760017925720,2.28337064,4379.5,4378.3,2.28397053]
[1760017925920,0.02616531,4379.7,4378.4,0.02283939]
[1760017926115,0.4414,4380.7,4378.5,0.4422]
[1760017926548,2.2833705,4379.5,4378.6,0.195]
[1760017926750,0.02616531,4379.4,4377.8,0.4422]
[1760017926910,2.28359527,4379.1,4377.9,2.756]
[1760017927114,0.1136,4378.8,4378.1,0.1136]
[1760017927336,0.02616531,4379.2,4377.9,2.756]
[1760017927547,0.1136,4379.1,4378.4,0.1136]
[1760017927773,0.1136,4379.1,4378.5,0.02283887]
[1760017927917,0.1128,4379.1,4378.5,0.02283887]
[1760017928643,10.02903089,4381.4,4377.3,2.51717099]